lending/lending_fUSD_20250808
["ID","MTS","AMOUNT","RATE_DAILY","PERIOD"]
[377954209,1754626279102,-400.0,0.00019983,2]
[377954210,1754626279112,-593.69,0.00019983,2]
[377954211,1754626279122,-400.0,0.00019983,2]
[377954212,1754626279132,-400.0,0.00019983,2]
[377954213,1754626279141,-1728.68,0.00019983,2]
[377954214,1754626279151,-400.0,0.00019983,2]
[377954215,1754626279161,-400.0,0.00019983,2]
[377954216,1754626279170,-715.63,0.00019983,2]
[377954217,1754626279180,-151.0,0.00019983,2]
[377954218,1754626279190,-400.0,0.00019983,2]
[377954219,1754626279200,-400.0,0.00019983,2]
[377954220,1754626279209,-400.0,0.00019983,2]
[377954221,1754626279219,-641.91,0.00019983,2]
[377954222,1754626279229,-891.24,0.00019983,2]
[377954223,1754626279238,-400.0,0.00019983,2]
[377954224,1754626279247,-406.1,0.00019983,2]
[377954225,1754626279257,-934.12,0.00019983,2]
[377954226,1754626279266,-934.46,0.00019983,2]
[377954227,1754626279276,-400.0,0.00019983,2]
[377954228,1754626279286,-670.4,0.00019983,2]
[377954229,1754626279295,-674.87,0.00019983,2]
[377954230,1754626279305,-1307.54,0.00019983,2]
[377954231,1754626279314,-400.0,0.00019983,2]
[377954232,1754626279324,-804.47,0.00019983,2]
[377954233,1754626279334,-400.0,0.00019983,2]
[377954234,1754626279344,-510.06,0.00019983,2]
[377954235,1754626279354,-937.03,0.00019983,2]
[377954236,1754626279363,-400.0,0.00019983,2]
[377954237,1754626279373,-812.93,0.00019983,2]
[377954238,1754626279382,-861.49,0.00019983,2]
[377954239,1754626279391,-400.0,0.00019983,2]
[377954240,1754626279401,-400.0,0.00019983,2]
[377954241,1754626279410,-552.22,0.00019983,2]
[377954242,1754626279420,-400.0,0.00019983,2]
[377954243,1754626279430,-486.11,0.00019983,2]
[377954244,1754626279439,-1786.72,0.00019983,2]
[377954245,1754626279449,-606.4,0.00019983,2]
[377954246,1754626279459,-810.48,0.00019983,2]
[377954247,1754626279469,-400.0,0.00019983,2]
[377954248,1754626279479,-809.54,0.00019983,2]
[377954249,1754626279489,-911.31,0.00019983,2]
[377954250,1754626279499,-437.41,0.00019983,2]
[377954251,1754626279508,-934.15,0.00019983,2]
[377954252,1754626279518,-992.26,0.00019983,2]
[377954253,1754626279527,-537.91457377,0.00019983,2]
[377954254,1754626279537,-775.57,0.00019983,2]
[377954255,1754626279546,-400.0,0.00019983,2]
[377954256,1754626279555,-451.59,0.00019983,2]
[377954257,1754626279565,-1104.9,0.00019983,2]
[377954258,1754626279575,-400.0,0.00019983,2]
[377954259,1754626279585,-400.0,0.00019983,2]
[377954260,1754626279594,-400.0,0.00019983,2]
[377954261,1754626279604,-703.85,0.00019983,2]
[377954262,1754626279615,-734.03,0.00019983,2]
[377954263,1754626279624,-759.22,0.00019983,2]
[377954264,1754626279634,-618.57,0.00019983,2]
[377954265,1754626279644,-670.41,0.00019983,2]
[377954266,1754626279653,-985.82,0.00019983,2]
[377954267,1754626279663,-549.5,0.00019983,2]
[377954268,1754626279673,-582.68,0.00019983,2]
[377954269,1754626279683,-400.0,0.00019983,2]
[377954270,1754626279693,-555.26,0.00019983,2]
[377954271,1754626279703,-1182.91,0.00019983,2]
[377954272,1754626279712,-400.0,0.00019983,2]
[377954273,1754626279722,-443.35,0.00019983,2]
[377954274,1754626279732,-836.26,0.00019983,2]
[377954275,1754626279742,-400.0,0.00019983,2]
[377954276,1754626279751,-489.93,0.00019983,2]
[377954277,1754626279761,-400.0,0.00019983,2]
[377954278,1754626279771,-986.57,0.00019983,2]
[377954279,1754626279781,-400.0,0.00019983,2]
[377954280,1754626279790,-477.62,0.00019983,2]
[377954281,1754626279799,-506.93,0.00019983,2]
[377954282,1754626279809,-853.89,0.00019983,2]
[377954283,1754626279818,-735.98,0.00019983,2]
[377954284,1754626279828,-400.0,0.00019983,2]
[377954285,1754626279838,-400.0,0.00019983,2]
[377954286,1754626279848,-444.13,0.00019983,2]
[377954287,1754626279859,-400.0,0.00019983,2]
[377954288,1754626279869,-400.0,0.00019983,2]
[377954289,1754626279879,-809.01,0.00019983,2]
[377954290,1754626279889,-409.63,0.00019983,2]
[377954291,1754626279898,-420.03,0.00019983,2]
[377954292,1754626279911,-1202.24,0.00019983,2]
[377954293,1754626279923,-1244.59,0.00019983,2]
[377954294,1754626279933,-477.58,0.00019983,2]
[377954295,1754626279944,-667.42,0.00019983,2]
[377954296,1754626279955,-536.9,0.00019983,2]
[377954297,1754626279965,-425.93,0.00019983,2]
[377954298,1754626279975,-400.19,0.00019983,2]
[377954299,1754626279985,-400.0,0.00019983,2]
[377954300,1754626279996,-1284.7,0.00019983,2]
[377954301,1754626280006,-775.37,0.00019983,2]
[377954302,1754626280015,-400.0,0.00019983,2]
[377954303,1754626280025,-1151.55,0.00019983,2]
[377954304,1754626280036,-400.0,0.00019983,2]
[377954305,1754626280046,-534.03,0.00019983,2]
[377954306,1754626280055,-1784.76,0.00019983,2]
[377954307,1754626280066,-538.24,0.00019983,2]
[377954308,1754626280076,-465.41,0.00019983,2]
[377954309,1754626280086,-473.75528532,0.00019983,2]
[377954310,1754626280098,-585.27,0.00019983,2]
[377954311,1754626280108,-400.0,0.00019983,2]
[377954312,1754626280118,-400.0,0.00019983,2]
[377954313,1754626280128,-727.75,0.00019983,2]
[377954314,1754626280139,-576.73,0.00019983,2]
[377954315,1754626280149,-510.17,0.00019983,2]
[377954316,1754626280160,-753.91,0.00019983,2]
[377954317,1754626280170,-400.0,0.00019983,2]
[377954318,1754626280179,-814.66,0.00019983,2]
[377954319,1754626280189,-400.0,0.00019983,2]
[377954320,1754626280199,-417.82,0.00019983,2]
[377954321,1754626280209,-1488.58,0.00019983,2]
[377954322,1754626280219,-1282.89,0.00019983,2]
[377954323,1754626280229,-945.35,0.00019983,2]
[377954324,1754626280239,-400.0,0.00019983,2]
[377954325,1754626280249,-589.45,0.00019983,2]
[377954326,1754626280260,-413.86,0.00019983,2]
[377954327,1754626280270,-400.0,0.00019983,2]
[377954328,1754626280279,-400.0,0.00019983,2]
[377954329,1754626280289,-400.0,0.00019983,2]
[377954330,1754626280299,-1386.59,0.00019983,2]
[377954331,1754626280309,-848.67,0.00019983,2]
[377954332,1754626280318,-400.0,0.00019983,2]
[377954333,1754626280328,-400.0,0.00019983,2]
[377954334,1754626280338,-1078.51,0.00019983,2]
[377954335,1754626280347,-1156.26,0.00019983,2]
[377954336,1754626280357,-764.62,0.00019983,2]
[377954337,1754626280367,-400.0,0.00019983,2]
[377954338,1754626280376,-497.98,0.00019983,2]
[377954339,1754626280387,-400.0,0.00019983,2]
[377954340,1754626280396,-400.0,0.00019983,2]
[377954341,1754626280406,-853.67,0.00019983,2]
[377954342,1754626280415,-1273.55,0.00019983,2]
[377954343,1754626280425,-400.0,0.00019983,2]
[377954344,1754626280435,-400.0,0.00019983,2]
[377954345,1754626280444,-1298.91,0.00019983,2]
[377954346,1754626280454,-400.0,0.00019983,2]
[377954347,1754626280464,-467.79,0.00019983,2]
[377954348,1754626280474,-400.0,0.00019983,2]
[377954349,1754626280484,-1383.74,0.00019983,2]
[377954350,1754626280494,-1126.68,0.00019983,2]
[377954351,1754626280704,-911.53,0.00019983,2]
[377954352,1754626280718,-400.0,0.00019983,2]
[377954353,1754626280729,-856.18,0.00019983,2]
[377954354,1754626280739,-874.75,0.00019983,2]
[377954355,1754626280750,-828.88,0.00019983,2]
[377954356,1754626280765,-484.52,0.00019983,2]
[377954357,1754626280775,-400.0,0.00019983,2]
[377954358,1754626280785,-790.9,0.00019983,2]
[377954359,1754626280795,-612.6,0.00019983,2]
[377954360,1754626280804,-1042.45,0.00019983,2]
[377954361,1754626280815,-884.96,0.00019983,2]
[377954362,1754626280824,-400.0,0.00019983,2]
[377954363,1754626280835,-328.40944682,0.00019983,2]
[377954364,1754626280844,-400.0,0.00019983,2]
[377954365,1754626280855,-796.87,0.00019983,2]
[377954366,1754626280865,-1229.15,0.00019983,2]
[377954367,1754626280876,-832.99,0.00019983,2]
[377954368,1754626280885,-843.04,0.00019983,2]
[377954369,1754626280895,-400.0,0.00019983,2]
[377954370,1754626280906,-994.14,0.00019983,2]
[377954371,1754626280918,-400.0,0.00019983,2]
[377954372,1754626280927,-400.0,0.00019983,2]
[377954373,1754626280938,-1122.85,0.00019983,2]
[377954374,1754626280948,-400.0,0.00019983,2]
[377954375,1754626280959,-401.13,0.00019983,2]
[377954376,1754626280969,-989.94,0.00019983,2]
[377954377,1754626280978,-456.89,0.00019983,2]
[377954378,1754626280991,-400.0,0.00019983,2]
[377954379,1754626281001,-1077.94,0.00019983,2]
[377954380,1754626281011,-483.29,0.00019983,2]
[377954381,1754626281021,-711.37,0.00019983,2]
[377954382,1754626281031,-737.86,0.00019983,2]
[377954383,1754626281041,-489.42,0.00019983,2]
[377954384,1754626281050,-1186.63,0.00019983,2]
[377954385,1754626281059,-840.07,0.00019983,2]
[377954386,1754626281069,-1405.89,0.00019983,2]
[377954387,1754626281078,-868.16,0.00019983,2]
[377954388,1754626281088,-400.0,0.00019983,2]
[377954389,1754626281098,-624.03,0.00019983,2]
[377954390,1754626281107,-583.58,0.00019983,2]
[377954391,1754626281117,-400.0,0.00019983,2]
[377954392,1754626281127,-400.0,0.00019983,2]
[377954393,1754626281136,-726.17,0.00019983,2]
[377954394,1754626281146,-782.71,0.00019983,2]
[377954395,1754626281155,-1539.75,0.00019983,2]
[377954396,1754626281165,-666.65,0.00019983,2]
[377954397,1754626281175,-1193.78,0.00019983,2]
[377954398,1754626281184,-400.0,0.00019983,2]
[377954399,1754626281193,-871.27,0.00019983,2]
[377954400,1754626281204,-607.63,0.00019983,2]
[377954401,1754626281214,-400.0,0.00019983,2]
[377954402,1754626281224,-400.0,0.00019983,2]
[377954403,1754626281237,-777.45,0.00019983,2]
[377954404,1754626281247,-400.0,0.00019983,2]
[377954405,1754626281256,-400.0,0.00019983,2]
[377954406,1754626281265,-400.37,0.00019983,2]
[377954407,1754626281274,-738.12,0.00019983,2]
[377954408,1754626281284,-400.0,0.00019983,2]
[377954409,1754626281293,-427.97,0.00019983,2]
[377954410,1754626281303,-400.0,0.00019983,2]
[377954411,1754626281312,-835.79,0.00019983,2]
[377954412,1754626281321,-1120.32,0.00019983,2]
[377954413,1754626281331,-786.29,0.00019983,2]
[377954414,1754626281340,-693.04,0.00019983,2]
[377954415,1754626281350,-667.91,0.00019983,2]
[377954416,1754626281361,-400.0,0.00019983,2]
[377954417,1754626281370,-1412.23,0.00019983,2]
[377954418,1754626281380,-865.97,0.00019983,2]
[377954419,1754626281390,-400.0,0.00019983,2]
[377954420,1754626281399,-621.57,0.00019983,2]
[377954421,1754626281408,-840.55,0.00019983,2]
[377954422,1754626281418,-731.02,0.00019983,2]
[377954423,1754626281427,-737.45,0.00019983,2]
[377954424,1754626281436,-1197.49,0.00019983,2]
[377954425,1754626281445,-400.0,0.00019983,2]
[377954426,1754626281455,-400.0,0.00019983,2]
[377954427,1754626281464,-1569.41,0.00019983,2]
[377954428,1754626281473,-400.0,0.00019983,2]
[377954429,1754626281482,-407.11,0.00019983,2]
[377954430,1754626281491,-400.0,0.00019983,2]
[377954431,1754626281501,-400.0,0.00019983,2]
[377954432,1754626281510,-400.0,0.00019983,2]
[377954433,1754626281519,-400.0,0.00019983,2]
[377954434,1754626281528,-1660.13,0.00019983,2]
[377954435,1754626281537,-1352.21,0.00019983,2]
[377954436,1754626281547,-400.0,0.00019983,2]
[377954437,1754626281556,-1446.46,0.00019983,2]
[377954438,1754626281566,-722.58,0.00019983,2]
[377954439,1754626281575,-446.68,0.00019983,2]
[377954440,1754626281584,-485.66,0.00019983,2]
[377954441,1754626281593,-489.93,0.00019983,2]
[377954442,1754626281603,-400.0,0.00019983,2]
[377954443,1754626281612,-400.0,0.00019983,2]
[377954444,1754626281622,-719.36,0.00019983,2]
[377954445,1754626281631,-400.0,0.00019983,2]
[377954446,1754626281640,-1102.7,0.00019983,2]
[377954447,1754626281649,-400.0,0.00019983,2]
[377954448,1754626281658,-860.35,0.00019983,2]
[377954449,1754626281667,-973.19,0.00019983,2]
[377954450,1754626281676,-772.76,0.00019983,2]
[377954451,1754626281685,-913.18,0.00019983,2]
[377954452,1754626281694,-1201.92,0.00019983,2]
[377954453,1754626281703,-684.27,0.00019983,2]
[377954454,1754626281713,-730.49,0.00019983,2]
[377954455,1754626281722,-1024.93,0.00019983,2]
[377954456,1754626281731,-400.0,0.00019983,2]
[377954457,1754626281741,-400.0,0.00019983,2]
[377954458,1754626281750,-400.0,0.00019983,2]
[377954459,1754626281760,-400.0,0.00019983,2]
[377954460,1754626281770,-400.0,0.00019983,2]
[377954461,1754626281780,-1040.58,0.00019983,2]
[377954462,1754626281789,-1036.9,0.00019983,2]
[377954463,1754626281799,-689.6,0.00019983,2]
[377954464,1754626281808,-637.5,0.00019983,2]
[377954465,1754626281818,-197.00785645,0.00019983,2]
[377954466,1754626281827,-429.29,0.00019983,2]
[377954467,1754626281837,-400.0,0.00019983,2]
[377954468,1754626281847,-400.0,0.00019983,2]
[377954469,1754626281856,-400.0,0.00019983,2]
[377954470,1754626281866,-638.34,0.00019983,2]
[377954471,1754626281876,-581.07,0.00019983,2]
[377954472,1754626281885,-1201.37,0.00019983,2]
[377954473,1754626281896,-400.0,0.00019983,2]
[377954474,1754626281906,-400.0,0.00019983,2]
[377954475,1754626281918,-530.5,0.00019983,2]
[377954476,1754626281927,-699.28,0.00019983,2]
[377954477,1754626281937,-400.0,0.00019983,2]
[377954478,1754626281946,-424.84,0.00019983,2]
[377954479,1754626281958,-620.58,0.00019983,2]
[377954480,1754626281968,-400.0,0.00019983,2]
[377954481,1754626281978,-868.63,0.00019983,2]
[377954482,1754626281989,-458.68,0.00019983,2]
[377954483,1754626281999,-370.27642671,0.00019983,2]
[377954484,1754626282008,-734.73,0.00019983,2]
[377954485,1754626282017,-1098.06,0.00019983,2]
[377954486,1754626282027,-400.0,0.00019983,2]
[377954487,1754626282036,-606.6,0.00019983,2]
[377954488,1754626282045,-400.0,0.00019983,2]
[377954489,1754626282055,-713.83,0.00019983,2]
[377954490,1754626282065,-445.36,0.00019983,2]
[377954491,1754626282074,-842.46,0.00019983,2]
[377954492,1754626282083,-400.0,0.00019983,2]
[377954493,1754626282093,-400.0,0.00019983,2]
[377954494,1754626282102,-1069.68,0.00019983,2]
[377954495,1754626282112,-1033.26,0.00019983,2]
[377954496,1754626282121,-400.0,0.00019983,2]
[377954497,1754626282130,-400.0,0.00019983,2]
[377954498,1754626282140,-888.88,0.00019983,2]
[377954499,1754626282150,-863.53,0.00019983,2]
[377954500,1754626282159,-400.0,0.00019983,2]
[377954501,1754626282170,-400.0,0.00019983,2]
[377954502,1754626282180,-400.0,0.00019983,2]
[377954503,1754626282189,-820.1,0.00019983,2]
[377954504,1754626282199,-400.0,0.00019983,2]
[377954505,1754626282208,-400.0,0.00019983,2]
[377954506,1754626282219,-919.85,0.00019983,2]
[377954507,1754626282229,-558.83,0.00019983,2]
[377954508,1754626282239,-512.59,0.00019983,2]
[377954509,1754626282248,-400.0,0.00019983,2]
[377954510,1754626282258,-400.0,0.00019983,2]
[377954511,1754626282267,-400.0,0.00019983,2]
[377954512,1754626282277,-964.77,0.00019983,2]
[377954513,1754626282287,-1118.27,0.00019983,2]
[377954514,1754626282297,-619.72,0.00019983,2]
[377954515,1754626282308,-806.08,0.00019983,2]
[377954516,1754626282318,-743.05,0.00019983,2]
[377954517,1754626282327,-400.0,0.00019983,2]
[377954518,1754626282337,-400.0,0.00019983,2]
[377954519,1754626282346,-414.42,0.00019983,2]
[377954520,1754626282356,-400.0,0.00019983,2]
[377954521,1754626282369,-685.96,0.00019983,2]
[377954522,1754626282378,-400.0,0.00019983,2]
[377954523,1754626282388,-400.0,0.00019983,2]
[377954524,1754626282398,-502.53,0.00019983,2]
[377954525,1754626282407,-898.01,0.00019983,2]
[377954526,1754626282416,-400.0,0.00019983,2]
[377954527,1754626282426,-492.83,0.00019983,2]
[377954528,1754626282435,-400.0,0.00019983,2]
[377954529,1754626282445,-400.0,0.00019983,2]
[377954530,1754626282455,-435.04,0.00019983,2]
[377954531,1754626282465,-1507.54,0.00019983,2]
[377954532,1754626282474,-675.7,0.00019983,2]
[377954533,1754626282484,-400.0,0.00019983,2]
[377954534,1754626282495,-701.37,0.00019983,2]
[377954535,1754626282505,-806.84,0.00019983,2]
[377954536,1754626282514,-400.0,0.00019983,2]
[377954537,1754626282525,-531.17,0.00019983,2]
[377954538,1754626282535,-400.0,0.00019983,2]
[377954539,1754626282544,-400.0,0.00019983,2]
[377954540,1754626282553,-483.84,0.00019983,2]
[377954541,1754626282562,-400.0,0.00019983,2]
[377954542,1754626282573,-1208.97,0.00019983,2]
[377954543,1754626282583,-410.33,0.00019983,2]
[377954544,1754626282592,-765.4,0.00019983,2]
[377954545,1754626282602,-412.8,0.00019984,2]
[377954546,1754626282613,-400.0,0.00019984,2]
[377954547,1754626282623,-400.0,0.00019984,2]
[377954548,1754626282632,-400.0,0.00019984,2]
[377954549,1754626282641,-404.64,0.00019984,2]
[377954550,1754626282650,-400.0,0.00019984,2]
[377954551,1754626282661,-400.0,0.00019984,2]
[377954552,1754626282670,-400.0,0.00019984,2]
[377954553,1754626282679,-400.0,0.00019984,2]
[377954554,1754626282689,-400.0,0.00019984,2]
[377954555,1754626282699,-400.0,0.00019984,2]
[377954556,1754626282708,-400.0,0.00019984,2]
[377954557,1754626282717,-478.1,0.00019984,2]
[377954558,1754626282727,-568.87,0.00019984,2]
[377954559,1754626282737,-408.96,0.00019984,2]
[377954560,1754626282746,-400.0,0.00019984,2]
[377954561,1754626282756,-535.54,0.00019984,2]
[377954562,1754626282765,-547.46505554,0.00019984,2]
[377954563,1754626282783,-400.0,0.00019984,2]
[377954564,1754626282802,-400.0,0.00019984,2]
[377954565,1754626282815,-570.52,0.00019984,2]
[377954566,1754626282829,-400.0,0.00019984,2]
[377954567,1754626282844,-608.45,0.00019984,2]
[377954568,1754626282860,-1928.8,0.00019984,2]
[377954569,1754626282875,-1191.19,0.00019984,2]
[377954570,1754626282888,-1627.19,0.00019984,2]
[377954571,1754626282900,-1006.47,0.00019984,2]
[377954572,1754626282919,-971.98,0.00019984,2]
[377954573,1754626282933,-1149.78,0.00019984,2]
[377954574,1754626282947,-1322.25,0.00019984,2]
[377954575,1754626282963,-1522.96,0.00019984,2]
[377954576,1754626282977,-1338.99,0.00019984,2]
[377954577,1754626282995,-1124.29,0.00019984,2]
[377954578,1754626283009,-1038.27,0.00019984,2]
[377954579,1754626283023,-1082.11,0.00019984,2]
[377954580,1754626283036,-3170.99,0.00019984,2]
[377954581,1754626283051,-517.21,0.00019984,2]
[377954582,1754626283064,-454.26,0.00019984,2]
[377954583,1754626283077,-1596.54,0.00019984,2]
[377954584,1754626283088,-418.08,0.00019984,2]
[377954585,1754626283101,-1259.82,0.00019984,2]
[377954586,1754626283117,-1257.59,0.00019984,2]
[377954587,1754626283129,-488.88,0.00019984,2]
[377954588,1754626283140,-989.14,0.00019984,2]
[377954589,1754626283151,-3833.66,0.00019984,2]
[377954590,1754626283168,-635.85,0.00019984,2]
[377954591,1754626283180,-977.69,0.00019984,2]
[377954592,1754626283192,-535.2,0.00019984,2]
[377954593,1754626283207,-1420.59,0.00019984,2]
[377954594,1754626283221,-688.54,0.00019984,2]
[377954595,1754626283234,-1470.71,0.00019984,2]
[377954596,1754626283246,-2102.07,0.00019984,2]
[377954597,1754626283259,-1166.94,0.00019984,2]
[377954598,1754626283273,-1675.89,0.00019984,2]
[377954599,1754626283285,-286.68271169,0.00019984,2]
[377954600,1754626283298,-463.67,0.00019984,2]
[377954601,1754626283311,-7230.19,0.00019984,2]
[377954602,1754626283323,-220.732218,0.00019985,2]
[377954603,1754626283335,-1510.38,0.00019985,2]
[377954604,1754626283347,-1874.12,0.00019985,2]
[377954605,1754626283359,-1171.75,0.00019985,2]
[377954606,1754626283371,-1791.72,0.00019985,2]
[377954607,1754626283383,-500.0,0.00019987,2]
[377954608,1754626283395,-150.0,0.0001999,2]
[377954609,1754626283408,-500.0,0.0001999,2]
[377954610,1754626283423,-1000.0,0.0001999,4]
[377954611,1754626283436,-500.0,0.0001999,2]
[377954612,1754626283449,-556.51,0.00019995,2]
[377954613,1754626283461,-400.0,0.00019995,2]
[377954614,1754626283473,-400.0,0.00019995,2]
[377954615,1754626283485,-500.88,0.00019995,2]
[377954616,1754626283499,-405.098288,0.00019995,2]
[377954617,1754626283511,-465.355861,0.00019995,2]
[377954618,1754626283524,-5718.06,0.00019995,2]
[377954619,1754626283536,-400.0,0.00019995,2]
[377954620,1754626283550,-326.40217314,0.00019995,2]
[377954621,1754626283564,-917.1,0.00019995,2]
[377954622,1754626283576,-151.0,0.00019995,2]
[377954623,1754626283589,-2592.1,0.00019995,2]
[377954624,1754626283601,-834.21,0.00019995,2]
[377954625,1754626283613,-1001.84,0.00019995,2]
[377954626,1754626283627,-534.13,0.00019995,2]
[377954627,1754626283639,-1270.37,0.00019995,2]
[377954628,1754626283651,-706.82,0.00019995,2]
[377954629,1754626283663,-1591.2,0.00019995,2]
[377954630,1754626283676,-660.07,0.00019995,2]
[377954631,1754626283688,-494.1,0.00019995,2]
[377954632,1754626283700,-967.76,0.00019995,2]
[377954633,1754626283712,-618.01,0.00019995,2]
[377954634,1754626283725,-400.0,0.00019995,2]
[377954635,1754626283737,-1690.35,0.00019995,2]
[377954636,1754626283749,-1475.33,0.00019995,2]
[377954637,1754626283760,-1214.04,0.00019995,2]
[377954638,1754626283772,-400.0,0.00019995,2]
[377954639,1754626283784,-1255.65,0.00019995,2]
[377954640,1754626283796,-583.96,0.00019995,2]
[377954641,1754626283808,-805.6,0.00019995,2]
[377954642,1754626283820,-1303.07,0.00019995,2]
[377954643,1754626283832,-1389.69,0.00019995,2]
[377954644,1754626283844,-1934.42,0.00019995,2]
[377954645,1754626283857,-13826.09,0.00019995,2]
[377954646,1754626283870,-673.43,0.00019995,2]
[377954647,1754626283882,-1094.57,0.00019995,2]
[377954648,1754626283894,-956.96,0.00019995,2]
[377954649,1754626283906,-1229.77,0.00019995,2]
[377954650,1754626283923,-400.0,0.00019995,2]
[377954651,1754626283935,-1116.74,0.00019995,2]
[377954652,1754626283947,-1443.25,0.00019995,2]
[377954653,1754626283960,-1419.71,0.00019995,2]
[377954654,1754626283972,-400.0,0.00019995,2]
[377954655,1754626283984,-585.57,0.00019995,2]
[377954656,1754626283997,-400.0,0.00019995,2]
[377954657,1754626284009,-2014.41,0.00019995,2]
[377954658,1754626284021,-1417.42,0.00019995,2]
[377954659,1754626284033,-160.0,0.0002,2]
[377954660,1754626284044,-300.0,0.0002,2]
[377954661,1754626284056,-224.045555,0.0002,2]
[377954662,1754626284067,-4000.0,0.0002,4]
[377954663,1754626284079,-1500.0,0.00020068,2]
[377954664,1754626284091,-1049.31804982,0.00020068,2]
[377954665,1754626284103,-927.2,0.00020095,2]
[377954666,1754626284115,-2523.45,0.00020095,2]
[377954667,1754626284127,-1124.43,0.00020095,2]
[377954668,1754626284138,-1246.81,0.00020095,2]
[377954669,1754626284150,-470.87,0.00020095,2]
[377954670,1754626284162,-1143.13,0.00020095,2]
[377954671,1754626284172,-2006.3,0.00020095,2]
[377954672,1754626284186,-1380.26,0.00020095,2]
[377954673,1754626284198,-1416.4,0.00020095,2]
[377954674,1754626284212,-790.97,0.00020095,2]
[377954675,1754626284224,-1022.39,0.00020095,2]
[377954676,1754626284236,-1567.37,0.00020095,2]
[377954677,1754626284248,-4510.8890233,0.000201,2]
[377954678,1754626284261,-168.04,0.00020105,2]
[377954679,1754626284272,-600.0,0.00020108,2]
[377954680,1754626284284,-150.0,0.00020147,2]
[377954681,1754626284295,-2501.36,0.00020153,2]
[377954682,1754626284306,-162.38734137,0.00020158,2]
[377954683,1754626284319,-1000.0,0.00020159,2]
[377954684,1754626284330,-277.35679052,0.00020168,2]
[377954685,1754626284342,-192.59,0.00020187,2]
[377954686,1754626284353,-1000.0,0.00020189,4]
[377954687,1754626284364,-300.0,0.00020189,2]
[377954688,1754626284376,-166.66,0.00020195,2]
[377954689,1754626284387,-151.39,0.00020231,2]
[377954690,1754626284398,-160.0,0.00020245,2]
[377954691,1754626284411,-2501.91,0.00020255,2]
[377954692,1754626284423,-455.72404985,0.00020256,2]
[377954693,1754626284435,-400.0,0.00020256,2]
[377954694,1754626284445,-400.0,0.00020256,2]
[377954695,1754626284457,-400.0,0.00020256,2]
[377954696,1754626284469,-618.32,0.00020256,2]
[377954697,1754626284479,-400.0,0.00020256,2]
[377954698,1754626284495,-400.0,0.00020256,2]
[377954699,1754626284508,-400.0,0.00020256,2]
[377954700,1754626284520,-588.0,0.00020256,2]
[377954701,1754626284531,-624.86,0.00020256,2]
[377954702,1754626284542,-427.23,0.00020256,2]
[377954703,1754626284554,-400.0,0.00020256,2]
[377954704,1754626284565,-884.77,0.00020256,2]
[377954705,1754626284576,-595.03,0.00020256,2]
[377954706,1754626284588,-400.0,0.00020256,2]
[377954707,1754626284600,-426.17,0.00020256,2]
[377954708,1754626284611,-440.95,0.00020256,2]